[Event "CCT Chessable Masters Play-In 2025"]
[Site "Online"]
[Date "2025.02.17"]
[Round "4.55"]
[White "Hakobyan, Aram"]
[Black "Aditya Mittal"]
[Result "1/2-1/2"]
[ECO "C47"]
[WhiteElo "2635"]
[BlackElo "2550"]
[PlyCount "74"]
[EventDate "2025.02.13"]
[EventType "swiss"]
[EventCountry "NET"]
[TimeControl "600"]
[WhiteClock "0:03:19"]
[BlackClock "0:03:17"]

1. e4 {[%emt 0:00:02]} e5 {[%emt 0:00:03]} 2. Nf3 {[%emt 0:00:01]} Nc6 {[%emt 0:00:00]} 3. Nc3 {[%emt 0:00:00]} Nf6 {[%emt 0:00:01]} 4. Nd5 {[%emt 0:00:00]} Nxd5 {[%emt 0:00:43]} 5. exd5 {[%emt 0:00:02]} Nd4 {[%emt 0:00:01]} 6. Nxd4 {[%emt 0:00:02]} exd4 {[%emt 0:00:00]} 7. Qe2+ {[%emt 0:00:00]} Qe7 {[%emt 0:00:14]} 8. b3 {[%emt 0:00:02]} c5 {[%emt 0:00:17]} 9. dxc6 {[%emt 0:00:11]} dxc6 {[%emt 0:00:08]} 10. Bb2 {[%emt 0:00:01]} Bf5 {[%emt 0:00:38]} 11. O-O-O {[%emt 0:00:28]} Qxe2 {[%emt 0:00:03]} 12. Bxe2 {[%emt 0:00:00]} Bc5 {[%emt 0:00:02]} 13. f4 {[%emt 0:01:29]} h5 {[%emt 0:00:17]} 14. Bf3 {[%emt 0:00:08]} O-O-O {[%emt 0:00:25]} 15. Rde1 {[%emt 0:00:03]} f6 {[%emt 0:00:04]} 16. Be4 {[%emt 0:00:07]} Bxe4 {[%emt 0:00:42]} 17. Rxe4 {[%emt 0:00:00]} d3 {[%emt 0:00:02]} 18. cxd3 {[%emt 0:00:20]} Rxd3 {[%emt 0:00:04]} 19. Kc2 {[%emt 0:00:01]} Rd7 {[%emt 0:00:15]} 20. Bc3 {[%emt 0:00:09]} h4 {[%emt 0:00:05]} 21. a4 {[%emt 0:00:03]} b6 {[%emt 0:00:18]} 22. b4 {[%emt 0:00:10]} Bd6 {[%emt 0:00:02]} 23. Rhe1 {[%emt 0:00:07]} Kc7 {[%emt 0:00:13]} 24. b5 {[%emt 0:00:05]} Rh5 {[%emt 0:00:09]} 25. Rc4 {[%emt 0:00:33]} Rc5 {[%emt 0:00:02]} 26. Rxc5 {[%emt 0:00:03]} bxc5 {[%emt 0:00:09]} 27. bxc6 {[%emt 0:00:49]} Kxc6 {[%emt 0:00:00]} 28. g3 {[%emt 0:00:01]} hxg3 {[%emt 0:00:22]} 29. hxg3 {[%emt 0:00:00]} c4 {[%emt 0:00:00]} 30. Re4 {[%emt 0:00:23]} Kd5 {[%emt 0:00:01]} 31. Rd4+ {[%emt 0:00:02]} Kc5 {[%emt 0:00:01]} 32. d3 {[%emt 0:00:16]} cxd3+ {[%emt 0:00:09]} 33. Kxd3 {[%emt 0:00:00]} Rb7 {[%emt 0:00:26]} 34. Ke4 {[%emt 0:00:35]} Re7+ {[%emt 0:00:22]} 35. Kd3 {[%emt 0:00:18]} Rb7 {[%emt 0:00:10]} 36. Ke4 {[%emt 0:00:01]} Re7+ {[%emt 0:00:01]} 37. Kd3 {[%emt 0:00:09]} Rb7 {[%emt 0:00:14]} 1/2-1/2

[Event "CCT Chessable Masters Play-In 2025"]
[Site "Online"]
[Date "2025.02.17"]
[Round "4.56"]
[White "Iturrizaga Bonelli, Eduardo"]
[Black "Quintiliano, Renato R."]
[Result "1-0"]
[ECO "A33"]
[WhiteElo "2577"]
[BlackElo "2515"]
[PlyCount "55"]
[EventDate "2025.02.13"]
[EventType "swiss"]
[EventCountry "NET"]
[TimeControl "600"]
[WhiteClock "0:01:46"]
[BlackClock "0:01:01"]

1. c4 {[%emt 0:01:33]} c5 {[%emt 0:00:04]} 2. Nf3 {[%emt 0:00:04]} Nc6 {[%emt 0:00:03]} 3. Nc3 {[%emt 0:00:01]} Nf6 {[%emt 0:00:02]} 4. d4 {[%emt 0:00:02]} cxd4 {[%emt 0:00:02]} 5. Nxd4 {[%emt 0:00:01]} e6 {[%emt 0:00:00]} 6. a3 {[%emt 0:00:04]} Bc5 {[%emt 0:00:16]} 7. Nb3 {[%emt 0:00:08]} Bb6 {[%emt 0:00:02]} 8. Bf4 {[%emt 0:00:03]} d5 {[%emt 0:00:15]} 9. e3 {[%emt 0:00:03]} O-O {[%emt 0:00:07]} 10. Be2 {[%emt 0:00:03]} h6 {[%emt 0:00:54]} 11. cxd5 {[%emt 0:01:29]} Nxd5 {[%emt 0:00:26]} 12. Nxd5 {[%emt 0:00:02]} exd5 {[%emt 0:00:00]} 13. O-O {[%emt 0:00:07]} Qf6 {[%emt 0:00:03]} 14. Qd2 {[%emt 0:00:17]} Be6 {[%emt 0:00:54]} 15. Rac1 {[%emt 0:00:13]} d4 {[%emt 0:00:16]} 16. Nc5 {[%emt 0:00:31]} Rad8 {[%emt 0:01:01]} 17. e4 {[%emt 0:01:11]} Bxc5 {[%emt 0:00:37]} 18. Rxc5 {[%emt 0:00:00]} d3 {[%emt 0:00:01]} 19. Bd1 {[%emt 0:00:03]} Qd4 {[%emt 0:00:34]} 20. Rh5 {[%emt 0:00:06]} Qxe4 {[%emt 0:01:44]} 21. Bxh6 {[%emt 0:00:02]} f6 {[%emt 0:00:01]} 22. Re1 {[%emt 0:00:14]} Qxe1+ {[%emt 0:00:35]} 23. Qxe1 {[%emt 0:00:03]} Bf7 {[%emt 0:00:00]} 24. Rh3 {[%emt 0:00:23]} Rfe8 {[%emt 0:00:02]} 25. Be3 {[%emt 0:00:31]} d2 {[%emt 0:00:14]} 26. Qe2 {[%emt 0:00:08]} Nd4 {[%emt 0:00:06]} 27. Qxd2 {[%emt 0:00:46]} Nf5 {[%emt 0:00:40]} 28. Qe1 {[%emt 0:00:06]} 1-0

[Event "CCT Chessable Masters Play-In 2025"]
[Site "Online"]
[Date "2025.02.17"]
[Round "4.57"]
[White "Akobian, Varuzhan"]
[Black "Demchenko, Anton"]
[Result "1-0"]
[ECO "A54"]
[WhiteElo "2564"]
[BlackElo "2619"]
[PlyCount "83"]
[EventDate "2025.02.13"]
[EventType "swiss"]
[EventCountry "NET"]
[TimeControl "600"]
[WhiteClock "0:00:49"]
[BlackClock "0:00:04"]

1. d4 {[%emt 0:00:01]} Nf6 {[%emt 0:00:08]} 2. c4 {[%emt 0:00:03]} d6 {[%emt 0:00:01]} 3. Nf3 {[%emt 0:00:03]} Nc6 {[%emt 0:00:02]} 4. Nc3 {[%emt 0:00:03]} e5 {[%emt 0:00:00]} 5. Bg5 {[%emt 0:00:03]} h6 {[%emt 0:00:02]} 6. Bxf6 {[%emt 0:00:11]} Qxf6 {[%emt 0:00:01]} 7. Nd5 {[%emt 0:00:01]} Qd8 {[%emt 0:00:01]} 8. e3 {[%emt 0:00:01]} g6 {[%emt 0:00:05]} 9. dxe5 {[%emt 0:00:20]} Nxe5 {[%emt 0:00:08]} 10. Be2 {[%emt 0:00:33]} Nxf3+ {[%emt 0:00:12]} 11. Bxf3 {[%emt 0:00:02]} Bg7 {[%emt 0:00:01]} 12. Qd2 {[%emt 0:00:01]} c6 {[%emt 0:00:10]} 13. Nc3 {[%emt 0:00:03]} Be6 {[%emt 0:00:07]} 14. b3 {[%emt 0:00:08]} Qa5 {[%emt 0:00:25]} 15. Rc1 {[%emt 0:00:02]} O-O {[%emt 0:00:01]} 16. Kd1 {[%emt 0:00:27]} Rfd8 {[%emt 0:00:31]} 17. Ke2 {[%emt 0:00:33]} Qa6 {[%emt 0:01:20]} 18. Qd3 {[%emt 0:00:03]} Bf5 {[%emt 0:00:45]} 19. e4 {[%emt 0:00:02]} Be6 {[%emt 0:00:01]} 20. Rc2 {[%emt 0:00:08]} Qa5 {[%emt 0:00:04]} 21. Rd1 {[%emt 0:00:02]} Qe5 {[%emt 0:00:06]} 22. g3 {[%emt 0:00:06]} d5 {[%emt 0:00:15]} 23. cxd5 {[%emt 0:00:11]} cxd5 {[%emt 0:00:01]} 24. Kf1 {[%emt 0:00:05]} Bh3+ {[%emt 0:00:34]} 25. Bg2 {[%emt 0:00:49]} Bxg2+ {[%emt 0:00:25]} 26. Kxg2 {[%emt 0:00:03]} dxe4 {[%emt 0:00:00]} 27. Qxd8+ {[%emt 0:00:02]} Rxd8 {[%emt 0:00:00]} 28. Rxd8+ {[%emt 0:00:02]} Kh7 {[%emt 0:00:00]} 29. Nd5 {[%emt 0:01:01]} Qg5 {[%emt 0:01:51]} 30. Rcc8 {[%emt 0:00:38]} h5 {[%emt 0:00:46]} 31. Ne3 {[%emt 0:00:34]} h4 {[%emt 0:00:02]} 32. Rd7 {[%emt 0:00:21]} Qf6 {[%emt 0:00:19]} 33. gxh4 {[%emt 0:00:35]} Qf3+ {[%emt 0:00:38]} 34. Kg1 {[%emt 0:00:04]} Be5 {[%emt 0:00:34]} 35. Rf8 {[%emt 0:01:02]} Qh3 {[%emt 0:00:01]} 36. Rfxf7+ {[%emt 0:00:17]} Kg8 {[%emt 0:00:01]} 37. Nf1 {[%emt 0:00:05]} Qg4+ {[%emt 0:00:05]} 38. Ng3 {[%emt 0:00:02]} Bd4 {[%emt 0:00:03]} 39. Rfe7 {[%emt 0:00:22]} Qd1+ {[%emt 0:00:03]} 40. Kg2 {[%emt 0:00:00]} Qf3+ {[%emt 0:00:00]} 41. Kh3 {[%emt 0:00:01]} Bc5 {[%emt 0:00:07]} 42. Rd8+ {[%emt 0:00:01]} 1-0

[Event "CCT Chessable Masters Play-In 2025"]
[Site "Online"]
[Date "2025.02.17"]
[Round "4.58"]
[White "Samadov, Read"]
[Black "Dai, Changren"]
[Result "1-0"]
[ECO "A07"]
[WhiteElo "2501"]
[BlackElo "2527"]
[PlyCount "67"]
[EventDate "2025.02.13"]
[EventType "swiss"]
[EventCountry "NET"]
[TimeControl "600"]
[WhiteClock "0:04:54"]
[BlackClock "0:02:46"]

1. Nf3 {[%emt 0:00:01]} d5 {[%emt 0:00:05]} 2. g3 {[%emt 0:00:01]} Bg4 {[%emt 0:00:02]} 3. Bg2 {[%emt 0:00:02]} e6 {[%emt 0:00:03]} 4. O-O {[%emt 0:00:02]} c6 {[%emt 0:00:01]} 5. h3 {[%emt 0:00:03]} Bh5 {[%emt 0:00:01]} 6. d4 {[%emt 0:00:05]} Nf6 {[%emt 0:00:05]} 7. c4 {[%emt 0:00:04]} Nbd7 {[%emt 0:00:15]} 8. cxd5 {[%emt 0:00:02]} exd5 {[%emt 0:00:01]} 9. Ne5 {[%emt 0:00:01]} Ne4 {[%emt 0:00:02]} 10. Bxe4 {[%emt 0:00:03]} dxe4 {[%emt 0:00:01]} 11. Nc3 {[%emt 0:00:00]} Nxe5 {[%emt 0:00:23]} 12. dxe5 {[%emt 0:00:00]} Qxd1 {[%emt 0:00:12]} 13. Rxd1 {[%emt 0:00:00]} Be7 {[%emt 0:00:50]} 14. Be3 {[%emt 0:00:23]} b6 {[%emt 0:00:52]} 15. Rd4 {[%emt 0:00:14]} f5 {[%emt 0:00:58]} 16. exf6 {[%emt 0:00:46]} Bxf6 {[%emt 0:00:02]} 17. Rxe4+ {[%emt 0:00:01]} Kf7 {[%emt 0:00:01]} 18. Rf4 {[%emt 0:00:15]} Bg6 {[%emt 0:00:55]} 19. Bd4 {[%emt 0:00:32]} Rhd8 {[%emt 0:00:09]} 20. Rd1 {[%emt 0:00:41]} c5 {[%emt 0:00:45]} 21. Bxf6 {[%emt 0:00:05]} Rxd1+ {[%emt 0:00:00]} 22. Nxd1 {[%emt 0:00:01]} gxf6 {[%emt 0:00:01]} 23. Kf1 {[%emt 0:00:07]} Rd8 {[%emt 0:00:05]} 24. Ke1 {[%emt 0:00:01]} b5 {[%emt 0:00:06]} 25. Nc3 {[%emt 0:00:05]} Bc2 {[%emt 0:00:13]} 26. e4 {[%emt 0:00:55]} b4 {[%emt 0:00:01]} 27. Nd5 {[%emt 0:00:01]} Bxe4 {[%emt 0:00:04]} 28. Nxf6 {[%emt 0:00:02]} Bb1 {[%emt 0:00:28]} 29. Ne4+ {[%emt 0:00:02]} Kg6 {[%emt 0:00:08]} 30. Nxc5 {[%emt 0:00:00]} a5 {[%emt 0:00:02]} 31. a3 {[%emt 0:00:03]} Rc8 {[%emt 0:00:04]} 32. axb4 {[%emt 0:00:05]} axb4 {[%emt 0:00:02]} 33. Rc4 {[%emt 0:00:21]} Bd3 {[%emt 0:00:17]} 34. Rg4+ {[%emt 0:00:02]} 1-0

[Event "CCT Chessable Masters Play-In 2025"]
[Site "Online"]
[Date "2025.02.17"]
[Round "4.59"]
[White "Meier, Georg"]
[Black "Guliyev, Namig"]
[Result "1-0"]
[ECO "A07"]
[WhiteElo "2592"]
[BlackElo "2486"]
[PlyCount "145"]
[EventDate "2025.02.13"]
[EventType "swiss"]
[EventCountry "NET"]
[TimeControl "600"]
[WhiteClock "0:01:52"]

1. Nf3 {[%emt 0:00:01]} d5 {[%emt 0:00:03]} 2. g3 {[%emt 0:00:01]} Bg4 {[%emt 0:00:01]} 3. Bg2 {[%emt 0:00:00]} Nd7 {[%emt 0:00:01]} 4. h3 {[%emt 0:00:04]} Bxf3 {[%emt 0:00:03]} 5. Bxf3 {[%emt 0:00:01]} Ngf6 {[%emt 0:00:00]} 6. d3 {[%emt 0:00:01]} e5 {[%emt 0:00:02]} 7. e4 {[%emt 0:00:01]} dxe4 {[%emt 0:00:03]} 8. dxe4 {[%emt 0:00:00]} Bc5 {[%emt 0:00:02]} 9. O-O {[%emt 0:00:02]} O-O {[%emt 0:00:01]} 10. Qe2 {[%emt 0:00:01]} a5 {[%emt 0:00:02]} 11. a4 {[%emt 0:00:01]} c6 {[%emt 0:00:02]} 12. Nd2 {[%emt 0:00:03]} Ne8 {[%emt 0:00:01]} 13. h4 {[%emt 0:00:01]} Nd6 {[%emt 0:00:01]} 14. Nb3 {[%emt 0:00:02]} b5 {[%emt 0:00:11]} 15. Rd1 {[%emt 0:00:05]} Qc7 {[%emt 0:00:11]} 16. Kg2 {[%emt 0:00:05]} Rfd8 {[%emt 0:00:07]} 17. Bg5 {[%emt 0:00:05]} f6 {[%emt 0:00:01]} 18. Bd2 {[%emt 0:00:10]} Bb6 {[%emt 0:00:02]} 19. Be1 {[%emt 0:00:06]} Nc5 {[%emt 0:00:18]} 20. Nxc5 {[%emt 0:00:10]} Bxc5 {[%emt 0:00:02]} 21. Bg4 {[%emt 0:00:11]} Kh8 {[%emt 0:00:15]} 22. Be6 {[%emt 0:00:08]} b4 {[%emt 0:00:07]} 23. Rd3 {[%emt 0:00:15]} Bd4 {[%emt 0:00:15]} 24. c3 {[%emt 0:00:04]} bxc3 {[%emt 0:00:02]} 25. bxc3 {[%emt 0:00:00]} Bc5 {[%emt 0:00:01]} 26. Rad1 {[%emt 0:00:08]} Qe7 {[%emt 0:00:12]} 27. Ba2 {[%emt 0:00:24]} Rab8 {[%emt 0:00:18]} 28. R1d2 {[%emt 0:00:08]} h6 {[%emt 0:00:12]} 29. Qg4 {[%emt 0:00:15]} f5 {[%emt 0:00:16]} 30. exf5 {[%emt 0:00:06]} e4 {[%emt 0:00:00]} 31. Re2 {[%emt 0:00:12]} Qf6 {[%emt 0:00:57]} 32. Rd1 {[%emt 0:00:09]} e3 {[%emt 0:00:21]} 33. Be6 {[%emt 0:01:10]} exf2 {[%emt 0:00:04]} 34. Bxf2 {[%emt 0:00:00]} Bxf2 {[%emt 0:00:03]} 35. Rxf2 {[%emt 0:00:01]} Nb7 {[%emt 0:00:27]} 36. Rb2 {[%emt 0:01:49]} Nc5 {[%emt 0:00:21]} 37. Rxb8 {[%emt 0:00:07]} Rxb8 {[%emt 0:00:03]} 38. Qd4 {[%emt 0:00:07]} Nxe6 {[%emt 0:02:26]} 39. Qxf6 {[%emt 0:00:02]} gxf6 {[%emt 0:00:00]} 40. fxe6 {[%emt 0:00:01]} Kg7 {[%emt 0:00:01]} 41. Rd6 {[%emt 0:00:11]} Kf8 {[%emt 0:00:37]} 42. Rd7 {[%emt 0:00:17]} Rb3 {[%emt 0:00:16]} 43. Rf7+ {[%emt 0:00:02]} Ke8 {[%emt 0:00:01]} 44. Rxf6 {[%emt 0:00:00]} Rxc3 {[%emt 0:00:01]} 45. Rxh6 {[%emt 0:00:01]} Ke7 {[%emt 0:00:06]} 46. Rg6 {[%emt 0:00:01]} c5 {[%emt 0:00:15]} 47. h5 {[%emt 0:00:03]} Rc2+ {[%emt 0:00:03]} 48. Kh3 {[%emt 0:00:09]} Rc1 {[%emt 0:00:13]} 49. Kg2 {[%emt 0:00:04]} Rc2+ {[%emt 0:00:01]} 50. Kf3 {[%emt 0:00:10]} c4 {[%emt 0:00:04]} 51. g4 {[%emt 0:00:09]} c3 {[%emt 0:00:05]} 52. Rg5 {[%emt 0:00:01]} Kxe6 {[%emt 0:00:13]} 53. Ke3 {[%emt 0:00:01]} Rg2 {[%emt 0:00:11]} 54. Kf3 {[%emt 0:00:03]} c2 {[%emt 0:00:02]} 55. Rc5 {[%emt 0:00:01]} Rh2 {[%emt 0:00:00]} 56. Ke3 {[%emt 0:00:14]} Kd6 {[%emt 0:00:01]} 57. Rc8 {[%emt 0:00:01]} Kd5 {[%emt 0:00:01]} 58. h6 {[%emt 0:00:09]} Rxh6 {[%emt 0:00:02]} 59. Rxc2 {[%emt 0:00:01]} Rh3+ {[%emt 0:00:01]} 60. Kf4 {[%emt 0:00:01]} Ra3 {[%emt 0:00:00]} 61. Rd2+ {[%emt 0:00:02]} Kc5 {[%emt 0:00:01]} 62. Rc2+ {[%emt 0:00:01]} Kb4 {[%emt 0:00:01]} 63. g5 {[%emt 0:00:02]} Rxa4 {[%emt 0:00:02]} 64. Kf5 {[%emt 0:00:02]} Kb3 {[%emt 0:00:00]} 65. Rc1 {[%emt 0:00:00]} Rd4 {[%emt 0:00:01]} 66. Rb1+ {[%emt 0:00:01]} Kc4 {[%emt 0:00:02]} 67. Ra1 {[%emt 0:00:01]} Kb5 {[%emt 0:00:01]} 68. Rb1+ {[%emt 0:00:01]} Kc5 {[%emt 0:00:01]} 69. Ra1 {[%emt 0:00:00]} Kb5 {[%emt 0:00:00]} 70. g6 {[%emt 0:00:01]} Rd2 {[%emt 0:00:02]} 71. Rb1+ {[%emt 0:00:00]} Kc5 {[%emt 0:00:00]} 72. Ra1 {[%emt 0:00:01]} Kb5 73. g7 {[%emt 0:00:00]} 1-0

[Event "CCT Chessable Masters Play-In 2025"]
[Site "Online"]
[Date "2025.02.17"]
[Round "4.60"]
[White "Madaminov, Mukhiddin"]
[Black "Pakleza, Zbigniew"]
[Result "1-0"]
[ECO "B01"]
[WhiteElo "2521"]
[BlackElo "2485"]
[PlyCount "41"]
[EventDate "2025.02.13"]
[EventType "swiss"]
[EventCountry "NET"]
[TimeControl "600"]
[WhiteClock "0:06:33"]
[BlackClock "0:08:05"]

1. e4 {[%emt 0:00:01]} d5 {[%emt 0:00:02]} 2. exd5 {[%emt 0:00:02]} Nf6 {[%emt 0:00:01]} 3. d4 {[%emt 0:00:02]} Nxd5 {[%emt 0:00:01]} 4. Nf3 {[%emt 0:00:06]} Bg4 {[%emt 0:00:01]} 5. c4 {[%emt 0:00:01]} Nb6 {[%emt 0:00:02]} 6. c5 {[%emt 0:00:04]} N6d7 {[%emt 0:00:02]} 7. Qb3 {[%emt 0:00:39]} Nc6 {[%emt 0:00:04]} 8. Nbd2 {[%emt 0:00:08]} Rb8 {[%emt 0:00:29]} 9. h3 {[%emt 0:00:13]} Bh5 {[%emt 0:00:07]} 10. d5 {[%emt 0:00:33]} Nce5 {[%emt 0:00:14]} 11. Nxe5 {[%emt 0:00:20]} Nxe5 {[%emt 0:00:00]} 12. g4 {[%emt 0:00:55]} Bg6 {[%emt 0:00:06]} 13. f4 {[%emt 0:00:01]} Nd7 {[%emt 0:00:02]} 14. f5 {[%emt 0:00:01]} Nxc5 {[%emt 0:00:03]} 15. Qb5+ {[%emt 0:00:01]} Nd7 {[%emt 0:00:15]} 16. fxg6 {[%emt 0:00:01]} hxg6 {[%emt 0:00:01]} 17. Bg2 {[%emt 0:00:06]} a6 {[%emt 0:00:02]} 18. Qa4 {[%emt 0:00:02]} Qc8 {[%emt 0:00:07]} 19. O-O {[%emt 0:00:06]} b5 {[%emt 0:00:03]} 20. Qf4 {[%emt 0:00:02]} f6 {[%emt 0:00:13]} 21. Nf3 {[%emt 0:00:03]} 1-0

[Event "CCT Chessable Masters Play-In 2025"]
[Site "Online"]
[Date "2025.02.17"]
[Round "4.61"]
[White "Pranav Anand"]
[Black "Kozak, Adam"]
[Result "1-0"]
[ECO "B66"]
[WhiteElo "2538"]
[BlackElo "2601"]
[PlyCount "67"]
[EventDate "2025.02.13"]
[EventType "swiss"]
[EventCountry "NET"]
[TimeControl "600"]
[WhiteClock "0:05:58"]
[BlackClock "0:04:53"]

1. e4 {[%emt 0:00:01]} c5 {[%emt 0:00:06]} 2. Nf3 {[%emt 0:00:00]} d6 {[%emt 0:00:01]} 3. d4 {[%emt 0:00:01]} cxd4 {[%emt 0:00:01]} 4. Nxd4 {[%emt 0:00:00]} Nf6 {[%emt 0:00:00]} 5. Nc3 {[%emt 0:00:01]} Nc6 {[%emt 0:00:01]} 6. Bg5 {[%emt 0:00:01]} a6 {[%emt 0:00:01]} 7. Qd2 {[%emt 0:00:02]} e6 {[%emt 0:00:01]} 8. O-O-O {[%emt 0:00:01]} h6 {[%emt 0:00:01]} 9. Be3 {[%emt 0:00:11]} Bd7 {[%emt 0:00:02]} 10. f3 {[%emt 0:00:18]} Rc8 {[%emt 0:00:02]} 11. Kb1 {[%emt 0:00:01]} b5 {[%emt 0:00:04]} 12. g4 {[%emt 0:00:13]} Ne5 {[%emt 0:00:17]} 13. a3 {[%emt 0:00:12]} Nc4 {[%emt 0:00:05]} 14. Bxc4 {[%emt 0:00:02]} Rxc4 {[%emt 0:00:00]} 15. h4 {[%emt 0:00:12]} Qc8 {[%emt 0:00:41]} 16. g5 {[%emt 0:00:08]} Nh5 {[%emt 0:00:04]} 17. Rhg1 {[%emt 0:00:07]} hxg5 {[%emt 0:00:02]} 18. hxg5 {[%emt 0:00:01]} g6 {[%emt 0:00:01]} 19. Nb3 {[%emt 0:00:05]} Qc7 {[%emt 0:00:35]} 20. Bd4 {[%emt 0:00:11]} Rh7 {[%emt 0:00:11]} 21. Qe3 {[%emt 0:00:18]} Be7 {[%emt 0:00:29]} 22. Bb6 {[%emt 0:00:24]} Qb8 {[%emt 0:00:02]} 23. Ba5 {[%emt 0:00:14]} Rc6 {[%emt 0:00:36]} 24. f4 {[%emt 0:00:20]} Ng7 {[%emt 0:00:01]} 25. Bb4 {[%emt 0:00:15]} Qb6 {[%emt 0:00:12]} 26. Qd2 {[%emt 0:00:06]} Rh3 {[%emt 0:00:08]} 27. Rh1 {[%emt 0:00:05]} Rxh1 {[%emt 0:00:04]} 28. Rxh1 {[%emt 0:00:01]} Nh5 {[%emt 0:00:01]} 29. Rd1 {[%emt 0:00:02]} Rc4 {[%emt 0:00:44]} 30. Na5 {[%emt 0:00:02]} Rc8 {[%emt 0:00:09]} 31. f5 {[%emt 0:00:14]} Rc5 {[%emt 0:00:20]} 32. f6 {[%emt 0:00:06]} Bf8 {[%emt 0:00:03]} 33. Bxc5 {[%emt 0:00:07]} Qxc5 {[%emt 0:00:02]} 34. Nb7 {[%emt 0:00:00]} 1-0

[Event "CCT Chessable Masters Play-In 2025"]
[Site "Online"]
[Date "2025.02.17"]
[Round "4.62"]
[White "Kourkoulos-Arditis, Stamatis"]
[Black "Azarov, Sergei"]
[Result "0-1"]
[ECO "A14"]
[WhiteElo "2580"]
[BlackElo "2596"]
[PlyCount "56"]
[EventDate "2025.02.13"]
[EventType "swiss"]
[EventCountry "NET"]
[TimeControl "600"]
[WhiteClock "0:01:05"]
[BlackClock "0:03:56"]

1. Nf3 {[%emt 0:00:06]} Nf6 {[%emt 0:00:38]} 2. g3 {[%emt 0:00:02]} e6 {[%emt 0:00:07]} 3. Bg2 {[%emt 0:00:01]} d5 {[%emt 0:00:03]} 4. O-O {[%emt 0:00:01]} Be7 {[%emt 0:00:01]} 5. c4 {[%emt 0:00:02]} dxc4 {[%emt 0:00:10]} 6. Qa4+ {[%emt 0:00:01]} Bd7 {[%emt 0:00:03]} 7. Qxc4 {[%emt 0:00:02]} Bc6 {[%emt 0:00:01]} 8. d3 {[%emt 0:00:34]} Nbd7 {[%emt 0:00:08]} 9. Qc2 {[%emt 0:00:20]} O-O {[%emt 0:00:06]} 10. b3 {[%emt 0:00:06]} Bd6 {[%emt 0:00:13]} 11. Bb2 {[%emt 0:00:02]} Qe7 {[%emt 0:00:03]} 12. Nbd2 {[%emt 0:00:03]} e5 {[%emt 0:00:42]} 13. e4 {[%emt 0:00:34]} a5 {[%emt 0:00:11]} 14. a3 {[%emt 0:00:10]} Rfe8 {[%emt 0:00:06]} 15. Rfe1 {[%emt 0:00:03]} Bc5 {[%emt 0:00:19]} 16. d4 {[%emt 0:00:11]} exd4 {[%emt 0:00:16]} 17. Nxd4 {[%emt 0:00:00]} Ne5 {[%emt 0:00:14]} 18. Nxc6 {[%emt 0:01:49]} bxc6 {[%emt 0:00:21]} 19. Nc4 {[%emt 0:00:10]} Nxc4 {[%emt 0:00:10]} 20. Qxc4 {[%emt 0:00:02]} Ng4 {[%emt 0:00:02]} 21. Re2 {[%emt 0:00:04]} Rad8 {[%emt 0:00:03]} 22. Rf1 {[%emt 0:00:27]} Bxa3 {[%emt 0:00:19]} 23. Bxa3 {[%emt 0:00:25]} Qxa3 {[%emt 0:00:02]} 24. e5 {[%emt 0:00:29]} Nxe5 {[%emt 0:00:19]} 25. Rfe1 {[%emt 0:00:37]} Re6 {[%emt 0:00:42]} 26. Qf4 {[%emt 0:00:29]} Rde8 {[%emt 0:00:11]} 27. Re3 {[%emt 0:00:56]} Nd3 {[%emt 0:00:32]} 28. Rxe6 {[%emt 0:01:09]} fxe6 {[%emt 0:00:02]} 0-1

[Event "CCT Chessable Masters Play-In 2025"]
[Site "Online"]
[Date "2025.02.17"]
[Round "4.63"]
[White "Nigmatov, Ortik"]
[Black "Warmerdam, Max"]
[Result "0-1"]
[ECO "B66"]
[WhiteElo "2505"]
[BlackElo "2638"]
[PlyCount "50"]
[EventDate "2025.02.13"]
[EventType "swiss"]
[EventCountry "NET"]
[TimeControl "600"]
[WhiteClock "0:03:19"]
[BlackClock "0:03:58"]

1. e4 {[%emt 0:00:01]} c5 {[%emt 0:00:02]} 2. Nf3 {[%emt 0:00:01]} d6 {[%emt 0:00:01]} 3. d4 {[%emt 0:00:01]} cxd4 {[%emt 0:00:00]} 4. Nxd4 {[%emt 0:00:00]} Nf6 {[%emt 0:00:00]} 5. Nc3 {[%emt 0:00:01]} Nc6 {[%emt 0:00:01]} 6. Bg5 {[%emt 0:00:01]} e6 {[%emt 0:00:00]} 7. Qd2 {[%emt 0:00:02]} Be7 {[%emt 0:00:01]} 8. O-O-O {[%emt 0:00:07]} a6 {[%emt 0:00:00]} 9. f3 {[%emt 0:00:03]} Nxd4 {[%emt 0:00:02]} 10. Qxd4 {[%emt 0:00:01]} b5 {[%emt 0:00:01]} 11. h4 {[%emt 0:00:05]} Bb7 {[%emt 0:00:01]} 12. Kb1 {[%emt 0:00:20]} Rc8 {[%emt 0:00:05]} 13. Be3 {[%emt 0:00:06]} O-O {[%emt 0:00:15]} 14. g4 {[%emt 0:00:02]} d5 {[%emt 0:01:56]} 15. g5 {[%emt 0:00:22]} Nh5 {[%emt 0:00:31]} 16. exd5 {[%emt 0:00:06]} b4 {[%emt 0:00:49]} 17. Na4 {[%emt 0:03:15]} Bxd5 {[%emt 0:00:26]} 18. Qg4 {[%emt 0:00:02]} Bxa2+ {[%emt 0:00:34]} 19. Kxa2 {[%emt 0:00:07]} Qxd1 {[%emt 0:00:01]} 20. Bd3 {[%emt 0:00:46]} b3+ {[%emt 0:00:56]} 21. Kxb3 {[%emt 0:00:06]} Rb8+ {[%emt 0:00:01]} 22. Ka2 {[%emt 0:00:17]} Qxh1 {[%emt 0:00:01]} 23. Qxh5 {[%emt 0:00:15]} g6 {[%emt 0:00:01]} 24. Qh6 {[%emt 0:00:14]} Rb4 {[%emt 0:00:02]} 25. Nb6 {[%emt 0:00:20]} Rxh4 {[%emt 0:00:15]} 0-1